bitfinex/quotes_ETHUSD_20241231
["timestamp","ask_amount","ask_price","bid_price","bid_amount"]
[1735630575099,0.383357,3360.0,3359.6,2.69237454]
[1735630575305,2.97602,3360.2,3359.6,2.69237454]
[1735630575515,2.9761,3360.1,3359.6,2.69237454]
[1735630575720,0.8276,3360.3,3359.9,2.69237454]
[1735630576032,0.8276,3360.3,3359.2,2.69237454]
[1735630576033,2.97583,3360.4,3360.2,2.69237454]
[1735630577728,4.22585308,3360.8,3360.2,2.69237454]
[1735630577729,2.97566,3360.6,3360.2,2.69237454]
[1735630577940,0.72273221,3360.6,3360.2,2.69237454]
[1735630578136,2.97575,3360.5,3360.2,2.69237454]
[1735630578496,2.97556,3360.8,3360.2,2.69237454]
[1735630578835,2.97556,3360.8,3360.5,2.69237454]
[1735630579130,1.12383293,3360.9,3360.5,2.69237454]
[1735630579332,1.12383293,3360.9,3359.6,8.9]
[1735630579333,2.97562,3360.7,3359.6,8.9]
[1735630579536,2.97562,3360.7,3360.5,2.69237454]
[1735630580131,2.97565,3360.6,3360.5,2.69237454]
[1735630582533,1.35198225,3360.9,3360.2,2.69237454]
[1735630582741,2.97575,3360.5,3360.2,2.69237454]
[1735630584749,4.22585308,3360.8,3360.2,2.69237454]
[1735630585054,2.97566,3360.6,3360.2,2.69237454]
[1735630587326,4.22599308,3360.6,3360.2,2.69237454]
[1735630588855,1.25033308,3360.5,3360.2,2.69237454]
[1735630590068,4.22599308,3360.6,3360.2,2.69237454]
[1735630591168,1.25033308,3360.5,3360.2,2.69237454]
[1735630591758,4.22607308,3360.5,3360.2,2.69237454]
[1735630592152,4.69902511,3360.5,3360.2,2.69237454]
[1735630592651,0.7835,3360.3,3359.6,8.9]
[1735630592888,2.97638,3359.8,3359.3,2.69237454]
[1735630593046,2.97657,3359.6,3359.3,2.69237454]
[1735630595669,4.22690308,3359.6,3359.3,2.69237454]
[1735630597697,4.25666303,3359.6,3359.3,2.69237454]
[1735630597904,2.18834665,3359.6,3359.3,2.69237454]
[1735630598208,2.97663,3359.5,3359.3,2.69237454]
[1735630598502,2.97672,3359.4,3359.0,2.69237454]
[1735630598718,0.7835,3359.3,3359.0,2.69237454]
[1735630600028,2.03383308,3359.3,3359.0,2.69237454]
[1735630604389,0.7835,3359.3,3359.0,2.69237454]
[1735630604756,1.25033308,3359.4,3359.0,2.69237454]
[1735630604982,1.25033308,3359.4,3359.3,2.69237454]
[1735630607001,1.25033308,3359.8,3359.3,2.69237454]
[1735630607272,1.25033308,3359.8,3359.7,2.69237454]
[1735630608551,1.25033308,3360.1,3359.7,2.69237454]
[1735630609789,1.87749612,3360.2,3359.7,2.69237454]
[1735630609790,1.25033308,3360.2,3359.7,2.69237454]
[1735630609967,1.25033308,3360.2,3360.0,2.69237454]
[1735630612381,2.9761,3360.1,3360.0,2.69237454]
[1735630612542,2.97619,3360.0,3359.5,8.9]
[1735630612743,2.97619,3360.0,3359.7,2.69237454]
[1735630613687,0.8125,3359.9,3359.7,2.69237454]
[1735630614052,0.8125,3359.9,3359.5,8.9]
[1735630614257,0.8125,3359.9,3359.7,2.69237454]
[1735630619258,4.22652308,3360.0,3359.7,2.69237454]
[1735630619461,1.25033308,3360.0,3359.7,2.69237454]
[1735630621487,1.25033308,3360.1,3359.7,2.69237454]
[1735630621694,1.25033308,3360.1,3360.0,2.69237454]
[1735630623885,1.25033308,3360.1,3359.0,0.26923745]
[1735630623886,1.44482889,3360.1,3359.7,2.69237454]
[1735630624189,2.97624,3360.0,3359.7,2.69237454]
[1735630624350,1.12675937,3360.1,3359.7,2.69237454]
[1735630624685,2.97663,3359.5,3359.4,8.9]
[1735630624887,3.80653,3359.5,3359.4,8.9]
[1735630626460,2.97647,3359.7,3359.4,8.9]
[1735630626758,2.97647,3359.7,3359.5,2.69237454]
[1735630626759,4.85396612,3359.7,3359.5,2.69237454]
[1735630628105,4.22618305,3359.7,3359.5,2.69237454]
[1735630629201,2.97654,3359.6,3359.5,2.69237454]
[1735630629603,3.71392856,3359.6,3359.5,2.69237454]
[1735630629777,0.73738856,3359.6,3359.2,2.69237454]
[1735630629960,2.97654,3359.6,3359.2,2.69237454]
[1735630630772,1.24971305,3359.5,3358.7,8.9]
[1735630630976,1.24971305,3359.5,3359.4,2.69237454]
[1735630631936,4.22616305,3359.7,3359.4,2.69237454]
[1735630633271,4.24971305,3359.6,3359.4,2.69237454]
[1735630634673,1.24971305,3359.6,3359.5,0.55]
[1735630635842,1.24971305,3359.6,3359.5,9.45]
[1735630636536,6.74721219,3360.4,3359.7,0.55]
[1735630636537,3.0,3360.3,3359.7,0.55]
[1735630636692,3.0,3360.3,3360.2,3.24237454]
[1735630637078,1.24971305,3360.4,3360.3,0.55]
[1735630638279,4.24971305,3360.4,3360.3,0.55]
[1735630640107,3.0,3360.4,3360.3,0.55]
[1735630647044,2.97583,3360.4,3359.6,0.55]
[1735630647346,2.97583,3360.4,3359.6,2.46960075]
[1735630647503,3.32365947,3360.4,3360.2,0.55]
[1735630647939,2.97583,3360.4,3360.2,0.55]
[1735630650568,4.22554305,3360.4,3360.2,0.55]
[1735630655131,1.24971305,3360.4,3360.2,0.55]
[1735630655424,2.48606311,3360.4,3360.1,2.69237454]
[1735630655639,3.74261,3360.2,3360.1,2.69237454]
[1735630656184,3.74261,3360.2,3359.9,0.55]
[1735630656655,0.7666,3360.2,3359.9,0.55]
[1735630656959,1.24971305,3360.3,3360.1,2.69237454]
[1735630657518,1.24971305,3360.3,3360.2,0.55]
[1735630660055,4.24971305,3360.5,3360.2,0.55]
[1735630660261,1.24971305,3360.5,3360.2,0.55]
[1735630661518,7.22537305,3360.6,3360.2,0.55]
[1735630661860,0.8057,3360.2,3360.1,2.69237454]
[1735630662228,0.8057,3360.2,3360.1,3.24237454]
[1735630662434,0.8057,3360.2,3360.1,2.69237454]
[1735630662636,2.97611,3360.1,3359.8,2.69237454]
[1735630662835,2.97611,3360.1,3359.9,0.55]
[1735630664064,2.05541305,3360.2,3359.9,0.55]
[1735630664565,1.24971305,3360.2,3360.1,3.24237454]
[1735630665959,1.24971305,3360.4,3360.2,0.55]
[1735630667024,3.0,3360.4,3360.2,0.55]
[1735630669045,6.96171692,3360.4,3360.2,0.55]
[1735630670978,1.24971305,3360.3,3360.2,0.55]
[1735630671183,4.22563305,3360.3,3360.2,0.55]
[1735630671879,4.22563305,3360.3,3359.9,0.55]
[1735630672082,5.86337304,3360.4,3359.9,0.55]
[1735630672377,4.87749612,3360.4,3360.2,0.55]
[1735630673802,0.7558,3360.5,3360.2,0.55]
[1735630673803,5.00631705,3360.5,3360.2,0.55]
[1735630674304,2.00631705,3360.5,3360.2,0.55]
[1735630677461,1.25051705,3360.4,3360.2,0.55]
[1735630678280,0.7558,3360.5,3360.2,0.55]
[1735630678281,1.25051705,3360.5,3360.2,0.55]
[1735630678487,1.25051705,3360.5,3359.8,8.9]
[1735630678488,1.25051705,3360.5,3360.4,3.24237454]
[1735630680970,1.87749612,3360.5,3360.4,3.24237454]
[1735630684289,1.87749612,3360.5,3360.4,1.82923253]
[1735630684689,1.87749612,3360.6,3360.4,1.82923253]
[1735630686113,1.87749612,3360.5,3360.4,1.82923253]
[1735630687600,1.87749612,3360.5,3360.4,2.01215578]
[1735630688368,1.87749612,3360.5,3360.4,3.43459267]
[1735630688772,1.87749612,3360.5,3360.4,15.03626209]
[1735630688773,1.25226022,3360.5,3360.4,15.03626209]
[1735630689184,1.25226022,3360.5,3360.4,12.33459267]
[1735630690205,1.25226022,3361.1,3360.4,13.36664497]
[1735630690365,1.25226022,3361.1,3361.0,2.70166942]
[1735630690564,1.25226022,3361.1,3361.0,3.25166942]
[1735630690804,1.28202017,3361.1,3360.5,8.9]
[1735630690972,2.97544,3360.9,3360.6,2.70166942]
[1735630691176,0.8329,3361.0,3360.4,1.0320523]
[1735630691177,0.8329,3360.5,3360.4,1.0320523]
[1735630691466,4.56694597,3360.5,3360.1,1.23351358]
[1735630691666,0.02975995,3360.4,3360.1,3.935183]
[1735630691981,4.56694597,3360.5,3360.2,0.55]
[1735630692190,0.02975995,3360.4,3360.2,0.55]
[1735630692503,0.37758942,3360.4,3360.2,0.55]
[1735630692907,1.25226022,3360.3,3360.2,0.55]
[1735630693268,1.25226022,3360.3,3360.1,2.70166942]
[1735630693472,0.78955995,3360.2,3360.1,2.70166942]
[1735630694115,0.78955995,3360.2,3360.1,3.25166942]
[1735630695369,2.0411176,3360.2,3360.1,3.25166942]
[1735630696632,0.78955995,3360.2,3360.1,3.25166942]
[1735630696794,0.7598,3360.2,3360.1,3.25166942]
[1735630699434,2.01122965,3360.2,3360.1,3.25166942]
[1735630700620,1.25142965,3360.2,3360.1,3.25166942]
[1735630701835,1.25142965,3360.4,3360.2,0.55]
[1735630702037,1.25142965,3360.4,3360.2,0.87516694]
[1735630702640,1.25142965,3360.5,3360.2,0.87516694]
[1735630702845,1.25142965,3360.5,3360.4,3.25166942]
[1735630704003,3.0,3360.8,3360.5,0.55]
[1735630704230,3.0,3360.8,3360.7,2.70166942]
[1735630704704,1.25142965,3360.9,3360.8,0.55]
[1735630705465,1.25142965,3360.9,3360.7,2.70166942]
[1735630705466,2.97548,3360.8,3360.7,2.70166942]
[1735630706371,3.7598,3360.9,3360.8,0.55]
[1735630706903,5.63729612,3360.9,3360.8,0.55]
[1735630708064,5.98512559,3360.9,3360.8,0.55]
[1735630708217,5.35832124,3360.9,3360.8,0.55]
[1735630708568,9.60464012,3360.9,3360.8,0.55]
[1735630708744,0.7601,3360.5,3359.8,8.9]
[1735630708900,0.7601,3360.5,3360.3,2.70166942]
[1735630709104,0.7601,3360.5,3360.4,0.55]
[1735630711140,3.78985995,3360.5,3360.4,0.55]
[1735630711740,3.7601,3360.5,3360.4,0.55]
[1735630711924,7.75499833,3360.5,3360.4,0.55]
[1735630712125,7.75499833,3360.5,3359.4,1.23351358]
[1735630712126,3.34825554,3360.5,3360.2,2.70166942]
[1735630712363,3.0,3360.4,3360.3,0.55]
[1735630713656,4.25092769,3360.4,3360.3,0.55]
[1735630714582,3.0,3360.4,3360.3,0.55]
[1735630718384,4.25110947,3360.4,3360.3,0.55]
[1735630720704,1.25110947,3360.4,3360.2,2.70166942]
[1735630720908,7.22693947,3360.4,3360.2,2.70166942]
[1735630721478,0.02975995,3360.3,3360.2,3.25166942]
[1735630722068,7.22693947,3360.4,3360.2,3.25166942]
[1735630722411,8.01688942,3360.3,3360.2,3.25166942]
[1735630722584,7.98712947,3360.3,3360.2,3.25166942]
[1735630723111,7.98712947,3360.3,3360.2,2.70166942]
[1735630723295,8.39760597,3360.3,3360.2,2.70166942]
[1735630723470,8.74543544,3360.3,3360.2,2.70166942]
[1735630723788,5.01120947,3360.3,3360.2,2.70166942]
[1735630724768,3.7601,3360.3,3360.2,2.70166942]
[1735630725771,7.84717976,3360.3,3360.2,2.70166942]
[1735630727320,8.19500923,3360.3,3360.2,2.70166942]
[1735630727875,5.97619,3360.0,3359.9,2.70166942]
[1735630728172,7.07741947,3360.0,3359.6,2.70166942]
[1735630728376,6.72991,3359.7,3359.6,2.70166942]
[1735630728580,3.0,3359.6,3359.0,1.23351358]
[1735630728878,6.73038,3359.1,3359.0,3.935183]
[1735630729173,6.73038,3359.1,3358.7,2.46702717]
[1735630729174,2.97725,3358.8,3358.7,3.935183]
[1735630729375,2.97725,3358.8,3358.7,1.23351358]
[1735630729675,7.07847947,3358.8,3358.7,1.23351358]
[1735630730977,3.0,3358.6,3358.3,2.70166942]
[1735630731173,3.02975995,3358.6,3358.3,2.70166942]
[1735630732538,3.0,3358.6,3358.3,2.70166942]
[1735630732735,0.02975995,3358.6,3358.3,2.70166942]
[1735630732980,3.0,3358.4,3358.3,2.70166942]
[1735630733352,2.9776,3358.4,3358.3,2.70166942]
[1735630734297,3.731,3358.4,3358.3,2.70166942]
[1735630738699,6.731,3358.4,3358.3,2.70166942]
[1735630738899,5.9776,3358.4,3358.3,2.70166942]
[1735630739075,3.0,3358.4,3358.3,2.70166942]
[1735630739459,3.0,3358.4,3358.3,3.25166942]
[1735630739911,3.0,3358.4,3358.3,2.70166942]
[1735630740261,3.0,3358.4,3358.3,3.25166942]
[1735630740461,3.77155,3358.7,3358.3,3.57683636]
[1735630740760,6.77155,3358.7,3358.6,2.70166942]
[1735630741176,3.0,3358.6,3358.3,2.70166942]
[1735630741502,6.7543,3358.4,3358.3,2.70166942]
[1735630741703,7.10212947,3358.4,3358.3,2.70166942]
[1735630741903,7.51260597,3358.4,3358.3,2.70166942]
[1735630742205,8.3411095,3358.4,3358.3,2.70166942]
[1735630743696,6.75457,3358.1,3358.0,2.70166942]
[1735630743965,7.51287597,3358.1,3358.0,2.70166942]
[1735630745064,7.10239947,3358.1,3358.0,2.70166942]
[1735630745271,6.75457,3358.1,3358.0,2.70166942]
[1735630746216,7.81064535,3358.1,3358.0,2.70166942]
[1735630748293,6.75457,3358.1,3358.0,2.70166942]
[1735630748489,2.97787,3358.1,3358.0,2.70166942]
[1735630748829,3.75414,3358.6,3358.1,0.55]
[1735630749034,0.7767,3358.9,3358.3,2.70166942]
[1735630749334,2.97727,3358.8,3358.3,0.32516694]
[1735630749493,3.0,3358.7,3358.0,0.55]
[1735630749695,5.97734,3358.7,3358.6,2.70166942]
[1735630754499,2.97715,3359.0,3358.6,2.70166942]
[1735630754696,2.97686,3359.3,3358.9,2.70166942]
[1735630754900,2.97686,3359.3,3359.2,2.70166942]
[1735630755724,5.97686,3359.3,3359.2,2.70166942]
[1735630756223,8.15555197,3359.3,3359.2,2.70166942]
[1735630756739,7.397246,3359.3,3359.2,2.70166942]
[1735630757136,7.8077225,3359.3,3359.2,2.70166942]
[1735630757737,8.15555197,3359.3,3359.2,2.70166942]
[1735630758827,6.79956,3359.3,3359.2,2.70166942]
[1735630760407,5.97686,3359.3,3359.2,2.70166942]
[1735630761382,3.0,3359.3,3359.2,2.70166942]
[1735630761717,3.0,3359.3,3359.2,3.25166942]
[1735630763142,3.0,3359.3,3359.2,2.70166942]
[1735630763483,5.97681,3359.3,3359.2,2.70166942]
[1735630763638,3.0,3359.3,3359.2,2.70166942]
[1735630764153,2.97646,3359.7,3359.3,0.55]
[1735630764354,4.85347612,3360.3,3359.7,0.55]
[1735630764355,2.9763,3359.9,3359.7,0.55]
[1735630764516,0.02975995,3359.8,3359.6,2.70166942]
[1735630764719,5.97645,3359.7,3359.6,2.70166942]
[1735630765149,6.76145,3359.7,3359.6,2.70166942]
[1735630771525,7.10927947,3359.7,3359.6,2.70166942]
[1735630771729,5.97672,3359.4,3359.3,2.70166942]
[1735630772667,6.78382,3359.4,3359.3,2.70166942]
[1735630772832,7.8356856,3359.4,3359.3,2.70166942]
[1735630775476,9.0844317,3359.4,3359.3,2.70166942]
[1735630779359,8.0325661,3359.4,3359.3,2.70166942]
[1735630784091,3.0,3359.3,3359.0,2.70166942]
[1735630784268,5.97698,3359.1,3359.0,2.70166942]
[1735630784900,3.0,3359.1,3359.0,2.70166942]
[1735630785085,3.0,3359.1,3359.0,3.25166942]
[1735630785287,4.2487461,3359.1,3359.0,3.25166942]
[1735630785482,7.2257261,3359.1,3359.0,3.25166942]
[1735630786623,5.97698,3359.1,3359.0,3.25166942]
[1735630788890,5.97698,3359.1,3359.0,2.70166942]
[1735630789271,2.97751,3358.5,3358.4,8.9]
[1735630789498,2.97751,3358.5,3358.4,11.60166942]
[1735630789720,2.97751,3358.5,3358.4,12.15166942]
[1735630795193,1.2487461,3358.8,3358.5,0.55]
[1735630795397,1.2487461,3358.8,3358.7,3.25166942]
[1735630796099,2.97717,3358.9,3358.7,3.25166942]
[1735630796100,4.2259161,3358.9,3358.7,3.25166942]
[1735630797795,1.2487461,3358.9,3358.7,3.25166942]
[1735630798124,1.2487461,3358.9,3358.7,12.15166942]
[1735630798770,2.97725,3358.8,3358.7,12.15166942]
[1735630800288,4.2259961,3358.8,3358.7,12.15166942]
[1735630801084,4.2259961,3358.8,3358.7,3.25166942]
[1735630801627,1.2487461,3358.8,3358.7,3.25166942]
[1735630801988,1.2487461,3358.8,3358.7,3.57683636]
[1735630803565,4.2257661,3359.1,3358.7,3.57683636]
[1735630803907,4.2257661,3359.1,3359.0,3.25166942]
[1735630804866,4.2257661,3359.1,3359.0,2.70166942]
[1735630805181,8.74517207,3359.1,3359.0,2.70166942]
[1735630805342,10.35493104,3359.1,3359.0,2.70166942]
[1735630806405,9.10618494,3359.1,3359.0,2.70166942]
[1735630810532,2.97725,3358.8,3358.7,2.70166942]
[1735630810706,6.73835,3358.8,3358.7,2.70166942]
[1735630811685,9.24085912,3358.8,3358.7,2.70166942]
[1735630815665,8.47975912,3358.8,3358.7,3.25166942]
[1735630817012,5.97725,3358.8,3358.7,3.25166942]
[1735630818514,7.8541673,3358.8,3358.7,3.25166942]
[1735630820086,5.97725,3358.8,3358.7,3.25166942]
[1735630820589,5.97725,3358.8,3358.7,2.70166942]
[1735630821485,8.08392164,3358.8,3358.7,2.70166942]
[1735630822495,6.75055,3358.8,3358.7,2.70166942]
[1735630823918,5.97725,3358.8,3358.7,2.70166942]
[1735630824270,2.97725,3358.8,3358.7,3.25166942]
[1735630824403,2.50295323,3358.8,3358.7,3.25166942]
[1735630825642,3.12267683,3358.9,3358.8,0.55]
[1735630825643,1.25163734,3358.9,3358.8,0.55]
[1735630826917,4.22872734,3359.0,3358.8,0.55]
[1735630827346,4.22872734,3359.0,3358.7,2.70166942]
[1735630827347,2.97725,3358.8,3358.7,2.70166942]
[1735630828454,3.96185934,3358.8,3358.7,2.70166942]
[1735630829021,2.97725,3358.8,3358.7,2.70166942]
[1735630829517,3.73995,3358.8,3358.7,2.70166942]
[1735630829917,3.76970995,3358.8,3358.7,2.70166942]
[1735630830159,3.00700995,3358.8,3358.7,2.70166942]
[1735630830723,5.50996318,3358.8,3358.7,2.70166942]
[1735630830938,5.48020323,3358.8,3358.7,2.70166942]
[1735630832676,7.47716624,3358.8,3358.7,2.73170366]
[1735630832976,10.47716624,3358.8,3358.7,2.70166942]
[1735630834798,7.97421301,3358.8,3358.7,2.70166942]
[1735630836270,11.09688984,3358.8,3358.7,2.70166942]
[1735630839481,9.09992683,3358.8,3358.7,2.70166942]
[1735630840345,9.09992683,3358.8,3358.7,2.73370037]
[1735630840559,7.85410356,3358.8,3358.7,2.73370037]
[1735630843280,7.85410356,3358.8,3358.7,3.28370037]
[1735630843483,1.87685356,3358.8,3358.7,3.28370037]
[1735630843783,1.87685356,3358.8,3358.7,3.61207041]
[1735630844698,3.12267683,3359.1,3358.8,0.55]
[1735630844699,1.25155349,3359.0,3358.8,0.55]
[1735630845059,1.25155349,3359.0,3358.9,0.58192987]
[1735630845876,4.22836349,3359.3,3359.0,0.55]
[1735630846103,4.22836349,3359.3,3359.0,3.25166942]
[1735630846273,4.22836349,3359.3,3359.0,4.50286635]
[1735630846474,4.22836349,3359.3,3359.2,0.55]
[1735630846910,2.9769,3359.2,3359.1,0.55]
[1735630848807,4.22845349,3359.2,3359.1,0.55]
[1735630850528,1.25155349,3359.2,3359.1,0.55]
[1735630850743,1.25155349,3359.2,3359.1,1.89028664]
[1735630851559,4.22844349,3359.2,3359.1,0.55]
[1735630852072,2.97689,3359.2,3359.1,0.55]
[1735630853072,2.97689,3359.2,3359.1,0.58192987]
[1735630853975,2.97689,3359.2,3359.1,0.03192987]
[1735630856076,4.22844349,3359.2,3359.1,0.03192987]
[1735630860082,2.97689,3359.2,3359.1,0.03192987]
[1735630860282,2.97689,3359.2,3359.1,0.58192987]
[1735630860825,1.87685356,3359.3,3359.2,0.55]
[1735630860974,1.87685356,3359.3,3359.2,0.03150234]
[1735630861570,4.85366356,3359.3,3359.2,0.03150234]
[1735630861811,2.97681,3359.3,3359.2,0.03150234]
[1735630864230,2.97681,3359.3,3359.2,1.31143472]
[1735630864390,2.97681,3359.3,3359.2,1.86143472]
[1735630865633,4.22780962,3359.3,3359.2,1.86143472]
[1735630866643,2.97681,3359.3,3359.2,1.86143472]
[1735630867327,1.25099962,3359.4,3359.2,1.86143472]
[1735630867528,1.25099962,3359.4,3359.3,0.86413671]
[1735630868116,1.25099962,3359.4,3359.3,0.89563905]
[1735630868316,1.25099962,3359.4,3359.3,3.59895978]
[1735630869206,1.25099962,3359.6,3359.3,3.59895978]
[1735630869541,4.22754962,3359.6,3359.3,3.56745744]
[1735630869843,1.25099962,3359.6,3359.5,0.55]
[1735630870222,1.25099962,3359.6,3359.5,0.58117597]
[1735630870458,1.25099962,3359.8,3359.5,0.58117597]
[1735630870652,1.25099962,3359.8,3359.7,3.25332073]
[1735630870963,2.9761,3360.1,3359.8,0.55]
[1735630871142,2.97592,3360.3,3359.8,0.55]
[1735630871541,5.97592,3360.3,3360.2,3.25332073]
[1735630871977,5.97592,3360.3,3360.2,3.28343989]
[1735630872334,3.0,3360.3,3360.2,3.28343989]
[1735630872538,4.24977436,3360.3,3360.2,3.28343989]
[1735630873996,3.0,3360.3,3360.2,3.28343989]
[1735630875398,0.8316,3360.5,3360.3,0.55]
[1735630875611,1.24977436,3360.7,3360.3,0.55]
[1735630875910,2.97583,3360.4,3359.9,0.55]
[1735630876857,1.24977436,3360.7,3360.4,0.55]
[1735630877200,2.97566,3360.6,3359.8,8.9]
[1735630877398,2.97566,3360.6,3359.9,1.56544393]
[1735630878044,1.24977436,3360.8,3360.1,0.55]
[1735630878201,1.24977436,3360.8,3360.7,3.25332073]
[1735630878401,2.97541,3360.9,3360.8,0.55]
[1735630878621,2.97541,3360.9,3360.6,0.55]
[1735630878780,2.97541,3360.9,3360.8,3.25332073]
[1735630883012,2.97541,3360.9,3360.8,3.2816614]
[1735630883390,2.97541,3360.9,3360.8,2.7316614]
[1735630887419,3.77923,3361.1,3360.9,0.55]
[1735630887793,3.77923,3361.1,3361.0,0.02834067]
[1735630889411,4.12705947,3361.1,3361.0,0.02834067]
[1735630889608,4.12705947,3361.1,3360.8,2.70332073]
[1735630889779,2.97539,3360.9,3360.8,2.70332073]
[1735630890207,4.12705947,3361.1,3360.8,1.27884747]
[1735630890446,7.19193595,3361.1,3361.0,1.27884747]
[1735630890650,7.53976542,3361.1,3361.0,1.27884747]
[1735630891424,2.97584,3360.4,3360.0,10.17884747]
[1735630891728,2.97584,3360.4,3360.3,1.27884747]
[1735630892454,2.97584,3360.4,3360.3,3.25199754]
[1735630893306,0.8039,3360.6,3360.3,3.25199754]
[1735630893511,3.77956,3360.6,3360.3,3.25199754]
[1735630894031,3.77956,3360.6,3360.4,0.55]
[1735630894690,0.8039,3360.6,3360.4,0.55]
[1735630895588,0.8039,3360.6,3360.1,0.55]
[1735630895903,0.8039,3360.6,3360.5,2.70199754]
[1735630896312,2.97552,3360.8,3360.5,3.25199754]
[1735630896486,2.97552,3360.8,3360.6,0.55]
[1735630898028,0.8039,3361.0,3360.7,0.02742703]
[1735630898338,0.8039,3361.0,3360.9,3.25199754]
[1735630898831,0.8039,3361.0,3360.9,3.27942457]
[1735630901734,0.8039,3361.0,3360.9,2.72942457]
[1735630901735,3.7792,3361.0,3360.9,2.72942457]
[1735630901890,5.2080193,3361.0,3360.9,2.72942457]
[1735630903260,5.2080193,3361.0,3360.9,2.70199754]
[1735630903598,4.5325893,3361.0,3360.9,2.72944787]
[1735630904255,4.12702947,3361.0,3360.9,2.72944787]
[1735630904541,3.7792,3361.0,3360.9,3.27944787]
[1735630904744,2.9753,3361.0,3360.9,3.27944787]
[1735630906816,2.9753,3361.0,3360.9,2.70199754]
[1735630908354,2.97539,3360.9,3360.2,0.55]
[1735630908528,2.97539,3360.9,3360.8,2.70199754]
[1735630909052,2.97539,3360.9,3360.8,3.27944787]
[1735630912463,2.97539,3360.9,3360.8,1.82891898]
[1735630912614,2.97539,3360.9,3360.8,1.85636931]
[1735630914450,4.22516436,3360.9,3360.8,1.85636931]
[1735630914857,1.24977436,3360.9,3360.8,1.85636931]
[1735630915696,4.22516436,3360.9,3360.8,1.85636931]
[1735630917195,1.87466154,3361.0,3360.8,1.85636931]
[1735630917401,1.87466154,3361.0,3360.9,1.82891898]
[1735630917788,4.84996154,3361.0,3360.9,1.30640811]
[1735630918599,4.84996154,3361.0,3360.9,1.27891898]
[1735630919018,2.97564,3360.7,3360.4,8.9]
[1735630919298,2.97565,3360.6,3360.5,0.02748913]
[1735630919452,2.97565,3360.6,3360.5,1.85640811]
[1735630920157,3.74845,3360.6,3360.5,1.85640811]
[1735630920995,5.62669062,3360.6,3360.5,1.85640811]
[1735630921580,5.62669062,3360.6,3360.5,1.30640811]
[1735630921581,9.43931455,3360.6,3360.5,1.30640811]
[1735630921764,9.78714402,3360.6,3360.5,1.30640811]
[1735630922413,8.97452009,3360.6,3360.5,1.30640811]
[1735630923687,8.62669062,3360.6,3360.5,1.30640811]
[1735630924017,6.74863,3360.4,3360.3,1.27891898]
[1735630924217,2.97628,3359.9,3359.6,8.9]
[1735630924404,2.97628,3359.9,3359.8,1.27891898]
[1735630924588,2.97628,3359.9,3359.8,1.82891898]
[1735630924998,2.97628,3359.9,3359.8,1.85661]
[1735630925920,4.22840823,3359.9,3359.8,1.85661]
[1735630926428,4.22840823,3359.9,3359.8,1.82891898]
[1735630927181,4.22840823,3359.9,3359.8,1.27891898]
[1735630927399,4.2122537,3359.9,3359.8,1.27891898]
[1735630928347,2.97636,3359.8,3359.7,2.70352619]
[1735630928701,2.97636,3359.8,3359.7,2.73225783]
[1735630929837,4.22720572,3359.8,3359.7,2.73225783]
[1735630930384,7.22720572,3359.8,3359.7,2.73225783]
[1735630930819,8.00000572,3359.8,3359.7,2.73225783]
[1735630931016,8.28502045,3359.8,3359.7,2.73225783]
[1735630931332,8.63284992,3359.8,3359.7,0.02873164]
[1735630931630,8.28502045,3359.8,3359.7,0.02873164]
[1735630931803,2.97663,3359.5,3359.4,2.70352619]
[1735630932004,2.97663,3359.5,3359.4,2.73254527]
[1735630932909,3.77683,3359.5,3359.4,2.73254527]
[1735630934238,3.77683,3359.5,3359.4,2.70352619]
[1735630937266,3.77683,3359.5,3359.4,2.73273175]
[1735630937761,2.97663,3359.5,3359.4,2.73273175]
[1735630938117,2.97663,3359.5,3359.4,2.70352619]
[1735630939442,2.97663,3359.5,3359.4,3.25352619]
[1735630939829,2.97663,3359.5,3359.4,3.28317456]
[1735630948381,2.97663,3359.5,3359.4,1.85945587]
[1735630950246,3.79592,3359.9,3359.4,1.85945587]
[1735630950447,6.79587,3359.9,3359.8,1.2798075]
[1735630952099,6.79587,3359.9,3359.8,1.30942479]
[1735630952853,5.97627,3359.9,3359.8,1.30942479]
[1735630953322,5.97627,3359.9,3359.8,1.2798075]
[1735630954524,2.92627,3359.9,3359.8,1.2798075]
[1735630957883,2.92627,3359.9,3359.8,1.30931602]
[1735630960700,2.92627,3359.9,3359.8,1.2798075]
[1735630961130,3.76605,3359.7,3359.6,1.2798075]
[1735630961427,3.76605,3359.7,3359.6,1.30924609]
[1735630962123,4.11387947,3359.7,3359.6,1.30924609]
[1735630962687,4.11387947,3359.7,3359.6,1.2798075]
[1735630963011,2.97689,3359.2,3358.4,8.9]
[1735630963218,2.97689,3359.2,3359.0,2.559615]
[1735630964028,2.97689,3359.2,3359.1,0.55]
[1735630965029,2.97674,3359.4,3359.1,0.55]
[1735630965193,2.97674,3359.4,3359.3,1.2798075]
[1735630965593,4.22775962,3359.4,3359.3,1.2798075]
[1735630967504,1.25101962,3359.4,3359.3,2.140769]
[1735630969264,1.25101962,3359.5,3359.3,2.140769]
[1735630969427,1.25101962,3359.5,3359.4,0.55]
[1735630970668,1.25101962,3359.6,3359.4,1.8298075]
[1735630970823,1.25101962,3359.6,3359.5,3.74936165]
[1735630972269,1.25101962,3360.0,3359.6,0.55]
[1735630972443,1.25101962,3360.0,3359.9,3.109615]
[1735630973077,1.25101962,3360.0,3359.9,3.13922453]
[1735630974436,1.25101962,3360.0,3359.9,12.03922453]
[1735630974633,1.25101962,3360.0,3359.9,13.24314698]
[1735630974839,1.25101962,3360.0,3359.9,16.21941698]
[1735630975136,1.25101962,3360.2,3360.0,0.55]
[1735630975337,1.25101962,3360.2,3360.1,1.85871783]
[1735630976426,1.25101962,3360.7,3360.2,9.45]
[1735630976607,1.25101962,3360.7,3360.6,1.2798075]
[1735630976906,1.25101962,3360.7,3360.6,1.8298075]
[1735630977196,1.25101962,3360.7,3360.6,1.85807315]
[1735630979663,1.25101962,3360.9,3360.7,0.55]
[1735630979864,1.25101962,3360.9,3360.8,1.8298075]
[1735630980103,5.34663909,3360.9,3360.8,1.8298075]
[1735630980277,6.72510771,3360.9,3360.8,0.02826565]
[1735630980603,2.97557,3360.7,3360.6,1.2798075]
[1735630980811,5.34665909,3360.9,3360.7,0.55]
[1735630981117,5.34665909,3360.9,3360.8,1.2798075]
[1735630986012,4.97981892,3360.9,3360.6,1.2798075]
[1735630986316,3.74797,3360.7,3360.6,1.2798075]